bitfinex-derivatives/quotes_ETHF0:USTF0_20250317
["timestamp","ask_amount","ask_price","bid_price","bid_amount"]
[1742217731518,5.63022,1902.7,1902.6,0.00788747]
[1742217731721,6.09622,1902.7,1902.6,0.00788747]
[1742217731915,1.3712,1902.7,1902.6,1.05915747]
[1742217732120,2.42242,1902.7,1902.6,0.00788747]
[1742217732315,1.3712,1902.7,1902.6,2.41845747]
[1742217732515,1.1518,1902.8,1902.7,1.05122]
[1742217732721,2.20296,1902.8,1902.7,2.457]
[1742217732923,3.58806,1902.8,1902.7,2.457]
[1742217733516,1.05122,1902.7,1902.6,3.93288747]
[1742217733715,2.43632,1902.7,1902.6,3.93288747]
[1742217734122,2.43632,1902.7,1902.6,5.29218747]
[1742217735123,2.43632,1902.7,1902.6,6.34345747]
[1742217735330,1.3851,1902.7,1902.6,6.34345747]
[1742217735727,2.43632,1902.7,1902.6,6.34345747]
[1742217736421,2.43632,1902.7,1902.6,0.00788747]
[1742217737833,1.3851,1902.7,1902.6,0.00788747]
[1742217738028,2.20301,1902.8,1902.6,1.05912747]
[1742217738224,2.5687,1902.8,1902.7,2.39782]
[1742217738429,4.25895,1902.9,1902.7,2.39782]
[1742217738629,1.05116,1902.8,1902.7,1.3466]
[1742217738829,1.05114,1902.9,1902.7,2.39778]
[1742217739231,1.4169,1903.0,1902.7,2.39778]
[1742217739232,2.46797,1903.0,1902.8,1.05116]
[1742217739533,2.46797,1903.0,1902.9,2.39771]
[1742217739534,1.4169,1903.0,1902.9,2.39771]
[1742217739832,2.15274,1903.1,1902.9,2.39771]
[1742217741032,1.05105,1903.0,1902.9,1.3466]
[1742217741234,1.3395,1903.0,1902.9,2.39771]
[1742217741433,0.00788747,1903.3,1902.9,1.3466]
[1742217741736,1.05098,1903.2,1903.0,1.05104]
[1742217741931,1.05098,1903.2,1903.1,1.3673]
[1742217742129,1.05098,1903.2,1903.1,5.2913]
[1742217742731,2.6275,1903.2,1902.7,4.25898]
[1742217742936,3.2078,1902.9,1902.7,5.2903]
[1742217743236,1.05116,1902.8,1902.7,6.34147]
[1742217743437,1.05116,1902.8,1902.7,5.2903]
[1742217743640,1.05122,1902.7,1902.6,0.00788747]
[1742217745735,1.05144,1902.3,1902.2,4.97447]
[1742217745933,1.05144,1902.3,1902.2,6.41817]
[1742217746238,1.05144,1902.3,1902.2,5.3667]
[1742217746929,1.05149,1902.2,1902.1,29.15188747]
[1742217747129,1.05149,1902.2,1902.1,0.00788747]
[1742217747336,1.05149,1902.2,1902.1,1.45168747]
[1742217747631,1.05149,1902.2,1902.1,2.50323747]
[1742217748236,1.05149,1902.2,1902.1,1.45168747]
[1742217748437,1.05149,1902.2,1902.1,2.50323747]
[1742217749143,1.05149,1902.2,1902.1,0.00788747]
[1742217752240,1.05149,1902.2,1902.1,1.05941747]
[1742217752547,1.05149,1902.2,1902.1,0.00788747]
[1742217753938,3.21568747,1902.3,1902.2,1.05149]
[1742217754137,3.21568747,1902.3,1902.2,6.28929]
[1742217754331,0.00788747,1902.3,1902.2,6.28929]
[1742217754530,2.19879,1902.6,1902.4,1.05135]
[1742217754738,2.19879,1902.6,1902.5,1.3158]
[1742217754931,1.05138,1902.4,1902.3,1.05142]
[1742217755238,1.05138,1902.4,1902.3,1.3158]
[1742217755440,1.05144,1902.3,1902.2,3.922]
[1742217755943,0.00788747,1902.4,1902.2,6.32119]
[1742217756247,1.05930747,1902.4,1902.2,6.32119]
[1742217756542,1.05931747,1902.4,1902.2,6.32119]
[1742217756735,1.05926747,1902.4,1902.3,1.05144]
[1742217757744,1.05926747,1902.4,1902.3,2.13804]
[1742217757943,1.05144,1902.3,1902.2,5.2697]
[1742217758538,1.05149,1902.2,1902.1,4.30228747]
[1742217758743,1.05149,1902.2,1902.1,8.22328747]
[1742217758943,1.05149,1902.2,1902.1,9.66638747]
[1742217759144,1.05149,1902.2,1902.1,10.71793747]
[1742217759841,1.05149,1902.2,1902.1,9.66638747]
[1742217760146,1.05149,1902.2,1902.1,7.13668747]
[1742217760847,1.05149,1902.2,1902.1,3.92888747]
[1742217761550,1.05149,1902.2,1902.1,4.98043747]
[1742217761844,2.43379,1902.2,1902.1,3.92888747]
[1742217762151,2.43379,1902.2,1902.1,4.98043747]
[1742217762644,2.43379,1902.2,1902.1,3.92888747]
[1742217762837,2.43379,1902.2,1902.1,4.98043747]
[1742217763238,2.43379,1902.2,1902.1,3.92888747]
[1742217764143,2.43379,1902.2,1902.1,0.00788747]
[1742217765348,2.43379,1902.2,1902.1,1.33338747]
[1742217766836,2.43379,1902.2,1902.1,0.00788747]
[1742217767946,1.05177,1901.8,1901.7,4.97176]
[1742217768150,1.05177,1901.8,1901.7,6.42686]
[1742217768352,1.05177,1901.8,1901.7,1.4551]
[1742217768646,1.05199,1901.4,1901.3,1.05195]
[1742217768955,1.05199,1901.4,1901.3,2.50709]
[1742217769141,1.05199,1901.4,1901.3,1.4551]
[1742217769643,2.38489,1901.4,1901.3,1.4551]
[1742217771043,1.05199,1901.3,1901.2,7.13468747]
[1742217771353,1.05199,1901.3,1900.7,7.1268]
[1742217771354,2.63026,1901.1,1900.7,7.1268]
[1742217771553,1.3655,1901.0,1900.8,1.05222]
[1742217771750,1.05221,1900.9,1900.8,2.46012]
[1742217772645,1.37338747,1901.0,1900.8,2.46012]
[1742217772646,2.42557747,1901.0,1900.8,6.37913]
[1742217772847,1.37338747,1901.0,1900.9,2.46011]
[1742217773048,2.42554747,1901.0,1900.9,1.4079]
[1742217773249,1.37338747,1901.0,1900.8,4.97124]
[1742217773458,2.42554747,1901.0,1900.9,1.4079]
[1742217773755,1.05221,1900.9,1900.8,3.919]
[1742217774150,1.05221,1900.9,1900.8,4.97127]
[1742217774446,1.05221,1900.9,1900.8,3.919]
[1742217775052,1.05221,1900.9,1900.8,5.3533]
[1742217776053,1.37338747,1901.0,1900.8,5.3533]
[1742217776054,2.42557747,1901.0,1900.8,5.3533]
[1742217776248,2.42557747,1901.0,1900.9,1.4343]
[1742217777745,0.00788747,1901.0,1900.9,2.48651]
[1742217779762,3.2078,1901.4,1901.3,1.05199]
[1742217779953,2.49627,1901.4,1901.1,3.919]
[1742217780259,2.49624,1901.4,1901.1,8.5669]
[1742217780456,3.2078,1901.7,1901.2,1.4401]
[1742217780657,7.18015,1901.7,1901.2,2.49212]
[1742217780852,1.05199,1901.3,1901.2,1.4401]
[1742217781052,0.00788747,1901.6,1901.2,1.4401]
[1742217781252,1.3429,1901.4,1901.3,1.05196]
[1742217781752,0.00788747,1901.6,1901.4,1.05194]
[1742217781957,2.40261747,1901.6,1901.5,1.4401]
[1742217782556,1.05196,1901.4,1901.1,7.13468747]
[1742217782756,1.05191,1901.5,1901.3,1.05194]
[1742217782953,1.05191,1901.5,1901.4,1.4401]
[1742217783358,1.05191,1901.5,1901.4,2.49204]
[1742217783865,1.05191,1901.5,1901.4,1.4401]
[1742217784256,1.05199,1901.3,1901.2,6.4263]
[1742217784556,1.05199,1901.3,1901.2,2.5083]
[1742217784961,2.10319,1901.3,1901.2,2.5083]
[1742217785766,1.05205,1901.2,1901.1,0.00788747]
[1742217785967,2.46145,1901.2,1901.1,0.00788747]
[1742217787765,2.46145,1901.2,1901.1,2.39958747]
[1742217787966,2.46145,1901.2,1901.1,1.34748747]
[1742217788160,2.46145,1901.2,1901.1,2.39958747]
[1742217788860,1.0512,1901.3,1901.2,1.05205]
[1742217789066,1.05975747,1901.6,1901.5,1.05188]
[1742217789262,1.05189,1901.5,1901.4,3.917]
[1742217789566,1.05194,1901.4,1901.3,1.05195]
[1742217789759,1.05194,1901.4,1901.2,3.917]
[1742217789760,1.05199,1901.3,1901.2,7.45053]
[1742217789959,2.41059,1901.3,1901.2,3.917]
[1742217790465,2.41059,1901.3,1901.2,1.3437]
[1742217790665,1.05205,1901.2,1901.1,0.00788747]
[1742217790865,2.41065,1901.2,1901.1,0.00788747]
[1742217792059,2.41065,1901.2,1901.1,1.05998747]
[1742217792366,2.41065,1901.2,1901.1,1.44848747]
[1742217793663,2.41065,1901.2,1901.1,0.00788747]
[1742217793867,5.61845,1901.2,1901.1,0.00788747]
[1742217794467,1.05227,1900.8,1900.7,2.5607]
[1742217794870,1.05227,1900.8,1900.7,3.61301]
[1742217795862,1.05227,1900.8,1900.7,2.5607]
[1742217796170,1.05227,1900.8,1900.7,2.17242]
[1742217796368,1.05227,1900.8,1900.7,3.49062]
[1742217796663,1.05227,1900.8,1900.7,2.4383]
[1742217797671,2.14207,1900.8,1900.7,2.4383]
[1742217797871,2.14207,1900.8,1900.7,1.1201]
[1742217798369,1.05232,1900.7,1900.6,3.2078]
[1742217798572,2.37532,1900.7,1900.6,3.2078]
[1742217798874,2.37532,1900.7,1900.6,4.5648]
[1742217799568,2.37532,1900.7,1900.6,5.61718]
[1742217799772,2.37532,1900.7,1900.6,1.357]
[1742217800266,2.37532,1900.7,1900.6,2.40938]
[1742217800468,1.323,1900.7,1900.6,2.40938]
[1742217800767,2.37532,1900.7,1900.6,2.40938]
[1742217800967,2.37532,1900.7,1900.6,1.357]
[1742217802468,2.37532,1900.7,1900.6,2.40938]
[1742217802660,1.323,1900.7,1900.6,2.40938]
[1742217802863,3.2078,1901.1,1900.6,7.19568]
[1742217803063,1.05222,1900.9,1900.7,5.3005]
[1742217803265,1.05222,1900.9,1900.8,1.3855]
[1742217803474,1.05227,1900.8,1900.7,3.915]
[1742217803674,3.59027,1900.8,1900.7,3.915]
[1742217803874,3.59027,1900.8,1900.7,5.3005]
[1742217804369,3.59027,1900.8,1900.7,3.915]
[1742217804767,1.05232,1900.7,1900.6,4.5728]
[1742217804966,2.40762,1900.7,1900.6,5.62518]
[1742217805169,2.40762,1900.7,1900.6,2.41738]
[1742217805372,2.40762,1900.7,1900.6,1.365]
[1742217805562,2.40762,1900.7,1900.6,2.41738]
[1742217805766,2.40762,1900.7,1900.6,1.365]
[1742217806176,1.05232,1900.7,1900.6,2.41738]
[1742217806863,2.40762,1900.7,1900.6,2.41738]
[1742217807068,1.1169,1900.8,1900.7,1.05232]
[1742217807269,2.40754,1900.9,1900.8,1.05227]
[1742217807469,2.40754,1900.9,1900.8,6.10577]
[1742217807771,2.40754,1900.9,1900.8,5.0535]
[1742217808372,2.40754,1900.9,1900.8,6.3982]
[1742217808872,1.05219,1901.0,1900.9,1.05221]
[1742217809073,1.05216,1901.0,1900.9,2.3969]
[1742217809474,2.36536,1901.0,1900.9,2.3969]
[1742217811177,1.3132,1901.0,1900.9,2.3969]
[1742217811378,3.2078,1901.3,1900.9,1.3447]
[1742217811677,3.2078,1901.3,1901.2,1.05205]
[1742217811678,4.25982,1901.3,1901.2,1.05205]
[1742217811877,1.0995,1901.4,1901.3,1.05199]
[1742217812078,1.3335,1901.5,1901.3,2.4262]
[1742217812377,2.38538,1901.5,1901.4,1.351]
[1742217812577,2.38538,1901.5,1901.4,2.40294]
[1742217813073,0.00788747,1901.6,1901.5,1.05188]
[1742217813376,1.05971747,1901.6,1901.5,5.264]
[1742217813578,1.05194,1901.4,1901.3,4.283]
[1742217813778,1.05194,1901.4,1901.3,4.9882]
[1742217814177,1.05194,1901.4,1901.3,6.3704]
[1742217814674,1.05205,1901.2,1901.1,3.2078]
[1742217815381,2.49845,1901.2,1901.1,3.2078]
[1742217815768,2.49845,1901.2,1901.1,4.59]
[1742217815978,2.49845,1901.2,1901.1,1.3822]
[1742217816173,1.0521,1901.1,1901.0,3.912]
[1742217816380,1.05216,1901.0,1900.9,2.43437]
[1742217816777,1.05216,1901.0,1900.9,1.3822]
[1742217816978,1.05221,1900.9,1900.8,5.051]
[1742217817179,2.16671,1900.9,1900.8,6.10327]
[1742217817482,2.16671,1900.9,1900.8,2.4675]
[1742217818284,2.16671,1900.9,1900.8,3.51977]
[1742217818579,2.16671,1900.9,1900.8,2.4675]
[1742217821480,2.16671,1900.9,1900.8,3.51977]
[1742217821681,2.16671,1900.9,1900.8,2.4675]
[1742217822283,2.16671,1900.9,1900.5,29.162]
[1742217822284,1.05238,1900.6,1900.5,30.21442]
[1742217822484,1.05238,1900.6,1900.5,35.21752]
[1742217823682,1.05238,1900.6,1900.5,30.2541]
[1742217823891,1.05238,1900.6,1900.2,3.2078]
[1742217823892,1.05254,1900.3,1900.2,3.2078]
[1742217824086,1.05254,1900.3,1900.2,4.2604]
[1742217824286,1.05254,1900.3,1900.2,8.1714]
[1742217824484,1.05254,1900.3,1900.2,7.1188]
[1742217824785,1.0526,1900.2,1900.1,1.118]
[1742217825287,1.0526,1900.2,1900.1,2.5652]
[1742217826080,2.48039,1900.3,1900.1,3.61786]
[1742217826291,7.26702,1900.3,1899.8,8.1716]
[1742217826490,1.05271,1900.0,1899.9,2.5055]
[1742217826789,1.422,1900.2,1899.9,3.55823]
[1742217826790,1.05268,1900.1,1899.9,3.55823]
[1742217826989,1.05271,1900.0,1899.9,1.118]
[1742217827585,2.47471,1900.0,1899.9,1.118]
[1742217827891,1.05277,1899.9,1899.8,3.2078]
[1742217828188,1.422,1899.9,1899.4,1.1363]
[1742217828386,7.26178,1899.9,1899.4,2.1893]
[1742217828581,7.26178,1899.9,1899.5,1.05299]
[1742217828582,1.05297,1899.6,1899.5,1.05299]
[1742217828785,1.05292,1899.7,1899.5,1.05299]
[1742217829180,1.05292,1899.7,1899.6,1.05293]
[1742217829384,1.05288,1899.7,1899.6,1.05293]
[1742217829590,1.05288,1899.7,1899.5,3.911]
[1742217829790,2.49696,1899.8,1899.5,3.911]
[1742217830091,1.4441,1899.8,1899.5,3.911]
[1742217830294,2.49696,1899.8,1899.6,1.0529]
[1742217830590,1.05274,1900.0,1899.8,1.05278]
[1742217830786,3.59179,1900.1,1899.9,2.14997]
[1742217830987,2.5391,1900.1,1900.0,1.05271]
[1742217831193,3.59176,1900.1,1900.0,1.05271]
[1742217831391,3.59176,1900.1,1899.9,2.14992]
[1742217832096,1.05271,1900.0,1899.9,2.14992]
[1742217832286,1.05271,1900.0,1899.9,1.0972]
[1742217832487,2.49291,1900.0,1899.9,1.0972]
[1742217833394,1.4402,1900.0,1899.9,2.14997]
[1742217833594,2.1477,1900.1,1900.0,1.05271]
[1742217834086,1.095,1900.1,1900.0,1.05271]
[1742217834782,1.05256,1900.3,1900.2,1.05257]
[1742217834985,2.43446,1900.3,1900.2,1.05257]
[1742217835193,1.0526,1900.2,1900.1,4.96263]
[1742217835496,1.05266,1900.1,1900.0,3.2078]
[1742217835891,1.05266,1900.1,1899.9,6.05994]
[1742217836093,1.3819,1900.0,1899.9,6.05994]
[1742217836891,1.05263,1900.2,1900.1,1.05266]
[1742217837093,1.05266,1900.1,1900.0,4.26047]
[1742217837891,1.05266,1900.1,1900.0,3.2078]
[1742217838194,1.05266,1900.1,1899.9,6.05993]
[1742217838395,1.3449,1900.0,1899.9,6.05997]
[1742217838789,1.05263,1900.2,1899.9,5.0072]
[1742217838990,1.3449,1900.1,1900.0,1.05271]
[1742217839191,1.05266,1900.1,1900.0,4.26051]
[1742217839391,2.39756,1900.1,1900.0,4.26051]
[1742217839592,1.3449,1900.1,1900.0,4.26051]
[1742217840096,2.39756,1900.1,1900.0,4.26051]
[1742217840898,1.05271,1900.0,1899.9,6.05993]
[1742217841100,3.52171,1900.0,1899.9,6.05993]
[1742217841299,3.52171,1900.0,1899.9,7.40193]
[1742217841698,2.469,1900.0,1899.9,7.40193]
[1742217843996,3.2078,1900.3,1899.9,6.3492]
[1742217844197,2.18447747,1900.4,1900.3,1.05254]
[1742217844401,1.05254,1900.3,1900.2,5.2557]
[1742217844606,2.47224,1900.3,1900.2,3.908]
[1742217844909,1.13198747,1900.4,1900.3,1.05254]
[1742217845108,1.13198747,1900.4,1900.3,2.09254]
[1742217845493,0.00788747,1900.4,1900.3,2.09254]
[1742217845900,1.06037747,1900.4,1900.3,1.04]
[1742217846110,2.48007747,1900.4,1900.3,1.04]
[1742217847103,0.00788747,1900.4,1900.3,2.09254]
[1742217847601,1.42908747,1900.4,1900.3,2.09254]
[1742217847802,0.00788747,1900.4,1900.3,2.09254]
[1742217849508,2.48157747,1900.4,1900.3,1.04]
[1742217849704,2.48157747,1900.4,1900.3,2.09254]
[1742217849900,2.48157747,1900.4,1900.3,1.04]
[1742217850107,1.05254,1900.3,1900.2,4.26035]
[1742217850405,3.56684,1900.3,1900.2,8.16735]
[1742217850606,1.05266,1900.1,1900.0,8.25]
[1742217851204,2.49914,1900.2,1900.0,8.25]
[1742217851396,1.4465,1900.2,1900.0,9.30268]
[1742217851602,1.4465,1900.1,1900.0,5.39668]
[1742217853307,2.1204,1900.3,1900.2,1.0526]
[1742217853508,1.05262,1900.2,1900.1,1.05263]
[1742217853707,2.46052,1900.2,1900.1,1.05263]
[1742217854902,2.4757,1900.3,1900.2,4.9586]
[1742217855707,0.00788747,1900.4,1900.3,1.05254]
[1742217855915,0.00788747,1900.4,1900.3,2.18024]
[1742217858017,1.35568747,1900.4,1900.3,2.18024]
[1742217859615,0.00788747,1900.4,1900.3,2.18024]
[1742217861212,0.00788747,1900.4,1900.3,3.63394]
[1742217862019,1.06042747,1900.4,1900.2,3.2078]
[1742217862216,1.3447,1900.3,1900.2,8.16436]
[1742217862418,1.3447,1900.3,1900.2,1.05256]
[1742217862808,1.3447,1900.3,1900.2,5.66426]
[1742217863411,0.00788747,1900.4,1900.3,1.05254]
[1742217863622,1.35258747,1900.4,1900.3,2.45644]
[1742217863817,1.35258747,1900.4,1900.3,6.36044]
[1742217864022,0.00788747,1900.4,1900.3,6.36044]
[1742217864423,2.4073,1900.6,1900.3,6.36044]
[1742217864424,1.02533362,1900.7,1900.6,1.05238]
[1742217864716,2.37003362,1900.7,1900.6,1.05238]
[1742217864922,1.3447,1900.7,1900.6,4.95538]
[1742217865122,2.39702,1900.7,1900.6,3.903]
[1742217865312,2.39702,1900.7,1900.6,4.95538]
[1742217865930,2.39702,1900.7,1900.5,0.00788747]
[1742217865931,1.05238,1900.6,1900.5,0.00788747]
[1742217866221,1.3519,1900.6,1900.5,1.06031747]
[1742217866419,1.3519,1900.6,1900.5,2.37541747]
[1742217867626,1.3519,1900.6,1900.5,3.50781747]
[1742217867816,1.11958747,1900.8,1900.7,1.05232]
[1742217869423,0.00788747,1900.8,1900.7,8.16212]
[1742217869722,0.00788747,1900.8,1900.7,9.26892]
[1742217869922,0.00788747,1900.8,1900.7,8.16212]
[1742217870517,1.35438747,1900.8,1900.7,8.16212]
[1742217871623,0.00788747,1900.8,1900.7,8.16212]
[1742217872828,1.43308747,1900.8,1900.7,8.16212]
[1742217873022,2.48535747,1900.8,1900.7,3.2078]
[1742217873219,1.43308747,1900.8,1900.7,4.26012]
[1742217873420,2.48535747,1900.8,1900.7,4.26012]
[1742217874019,1.43308747,1900.8,1900.7,4.26012]
[1742217874220,2.48535747,1900.8,1900.7,5.70092]
[1742217874429,1.43308747,1900.8,1900.7,5.70092]
[1742217876529,2.48535747,1900.8,1900.7,3.2078]
[1742217876718,1.43308747,1900.8,1900.7,4.26012]
[1742217876923,1.43308747,1900.8,1900.7,5.61642]
[1742217877423,2.48535747,1900.8,1900.7,3.2078]
[1742217877823,1.43308747,1900.8,1900.7,5.60422]
[1742217879936,2.48535747,1900.8,1900.7,5.60422]
[1742217880234,1.43308747,1900.8,1900.7,5.60422]
[1742217880628,2.48535747,1900.8,1900.7,5.60422]
[1742217880833,2.48535747,1900.8,1900.7,3.2078]
[1742217881829,2.48535747,1900.8,1900.7,4.26012]
[1742217882232,2.48535747,1900.8,1900.7,3.2078]
[1742217882440,2.48535747,1900.8,1900.7,4.26012]
[1742217883635,1.43308747,1900.8,1900.7,5.71222]
[1742217884636,0.00788747,1900.8,1900.7,5.71222]
[1742217884939,3.19581164,1901.1,1900.9,1.05217]
[1742217885127,1.05216,1901.0,1900.9,4.95117]
[1742217885532,1.1213,1901.1,1900.9,3.899]
[1742217885733,1.1213,1901.1,1900.9,4.95118]
[1742217885936,1.4253,1901.0,1900.9,6.40328]
[1742217886236,1.4253,1901.0,1900.9,9.61108]
[1742217886438,1.4253,1901.0,1900.9,6.40328]
[1742217886644,1.1213,1901.1,1901.0,1.05216]
[1742217886829,2.4638,1901.1,1901.0,2.40006]
[1742217887336,1.03062383,1901.2,1901.1,1.0521]
[1742217887536,2.08267383,1901.2,1901.1,3.5147]
[1742217887843,2.40243747,1901.2,1901.1,3.5147]
[1742217888235,1.35038747,1901.2,1901.1,3.5147]
[1742217888435,2.40243747,1901.2,1901.1,3.5147]
[1742217888732,1.35038747,1901.2,1901.1,3.5147]
[1742217888942,1.35038747,1901.2,1901.1,6.7225]
[1742217893353,2.40243747,1901.2,1901.1,6.7225]
[1742217894054,1.05216,1901.0,1900.8,6.29244]
[1742217894259,2.11631,1900.9,1900.8,6.29247]
[1742217895558,2.11631,1900.9,1900.8,5.2402]
[1742217895961,1.0641,1900.9,1900.8,6.29247]
[1742217897357,0.00788747,1901.2,1900.8,6.29242]
[1742217897554,1.0489,1900.9,1900.8,6.29242]
[1742217897755,1.0489,1900.9,1900.8,4.94822]
[1742217898554,1.0489,1900.9,1900.8,3.896]
[1742217898748,1.0489,1900.9,1900.7,5.34868]
[1742217898749,1.05227,1900.8,1900.7,4.2964]
[1742217898954,1.05227,1900.8,1900.7,8.1914]
[1742217899159,1.05227,1900.8,1900.7,4.2964]
[1742217899359,1.05227,1900.8,1900.7,1.0886]
[1742217900255,1.05238,1900.6,1900.5,3.21568747]
[1742217900460,1.05238,1900.6,1900.5,3.90288747]
[1742217900657,1.05238,1900.6,1900.5,0.00788747]
[1742217902662,1.05238,1900.6,1900.5,1.06031747]
[1742217903454,1.05238,1900.6,1900.5,0.00788747]
[1742217905164,1.0489,1900.9,1900.5,0.00788747]
[1742217905356,4.63597566,1900.9,1900.5,3.21568747]
[1742217905556,1.05238,1900.6,1900.5,3.21568747]
[1742217906164,1.05238,1900.6,1900.5,0.00788747]
[1742217906364,2.63118,1900.5,1900.0,3.2078]
[1742217906564,1.0526,1900.2,1900.1,1.0474]
[1742217906755,1.05266,1900.1,1900.0,7.1018]
[1742217906958,1.05266,1900.1,1900.0,8.1492]
[1742217907259,1.05266,1900.1,1900.0,9.20191]
[1742217907563,1.05266,1900.1,1900.0,4.2552]
[1742217908766,1.05266,1900.1,1900.0,3.2078]
[1742217908968,1.05271,1900.0,1899.9,29.19088747]
[1742217909964,1.05271,1900.0,1899.9,30.21868747]
[1742217910153,1.0707,1900.1,1900.0,1.05271]
[1742217910357,1.0707,1900.1,1899.9,30.21868747]
[1742217910358,0.00788747,1900.2,1900.1,1.05266]
[1742217910557,0.00788747,1900.2,1900.1,8.15446]
[1742217911263,1.06048747,1900.2,1900.1,3.894]
[1742217911455,1.06048747,1900.2,1900.1,5.3478]
[1742217911657,1.06048747,1900.2,1900.1,1.4538]
[1742217911969,1.0527,1900.1,1900.0,2.50651]
[1742217912164,2.48226,1900.1,1900.0,1.4538]
[1742217912464,2.48226,1900.1,1900.0,2.50651]
[1742217912663,2.48226,1900.1,1900.0,1.4538]
[1742217913060,1.4296,1900.1,1899.9,34.11168747]
[1742217913265,3.56221,1900.0,1899.9,35.56548747]
[1742217914263,3.56221,1900.0,1899.9,0.00788747]
[1742217914661,3.56221,1900.0,1899.9,1.06065747]
[1742217914862,2.5095,1900.0,1899.9,1.06065747]
[1742217915059,2.5095,1900.0,1899.9,2.37215747]
[1742217915263,3.56221,1900.0,1899.9,2.37215747]
[1742217915566,2.5095,1900.0,1899.9,2.37215747]
[1742217916568,3.56221,1900.0,1899.9,1.31938747]
[1742217916966,3.56221,1900.0,1899.9,0.00788747]
[1742217918767,3.56221,1900.0,1899.5,3.2078]
[1742217918768,2.63192,1899.9,1899.5,4.26075]
[1742217919067,1.05293,1899.6,1899.5,4.2744]
[1742217919466,1.05293,1899.6,1899.5,5.7268]
[1742217920062,2.43801,1899.7,1899.5,6.77979]
[1742217920266,1.3851,1899.7,1899.6,1.05293]
[1742217920464,1.3851,1899.7,1899.6,2.45123]
[1742217921467,1.05281,1899.9,1899.6,1.3983]
[1742217921668,1.05281,1899.9,1899.7,2.45118]
[1742217921669,1.3503,1899.8,1899.7,2.45118]
[1742217921869,2.40312,1899.8,1899.7,1.3983]
[1742217923471,1.3503,1899.8,1899.7,2.45118]
[1742217923660,1.05281,1899.9,1899.7,2.45118]
[1742217923867,2.14094,1900.0,1899.8,2.5098]
[1742217924166,1.0882,1900.0,1899.9,1.05277]
[1742217924769,2.14091,1900.0,1899.9,1.05277]
[1742217924966,3.58981,1900.0,1899.9,2.48307]
[1742217925165,3.58981,1900.0,1899.9,1.4303]
[1742217925772,1.05277,1899.9,1899.8,2.5098]
[1742217926068,2.50167,1899.9,1899.8,2.5098]
[1742217926772,2.50167,1899.9,1899.8,1.0795]
[1742217927074,1.05282,1899.8,1899.7,3.892]
[1742217927373,1.05288,1899.7,1899.6,1.3688]
[1742217927571,1.05288,1899.7,1899.6,2.5057]
[1742217928075,1.05293,1899.6,1899.5,3.2078]
[1742217928270,2.37883,1899.6,1899.5,3.2078]
[1742217928766,2.37883,1899.6,1899.5,4.5766]
[1742217929573,2.37883,1899.6,1899.5,5.62959]
[1742217930970,4.296,1900.0,1899.5,7.20899]
[1742217931277,1.05288,1899.7,1899.6,1.3807]
[1742217931971,2.39448,1899.7,1899.6,1.3807]
[1742217932274,2.39448,1899.7,1899.5,3.891]
[1742217932275,1.05293,1899.6,1899.5,3.891]
[1742217932575,1.05299,1899.5,1899.4,34.494]
[1742217932979,2.48049,1899.5,1899.4,5.304]
[1742217933772,1.05304,1899.4,1899.3,8.2347]
[1742217934077,2.48054,1899.4,1899.3,5.7587]
[1742217934767,2.48054,1899.4,1899.3,6.8118]
[1742217934966,1.4275,1899.4,1899.3,6.8118]
[1742217935167,1.05301,1899.5,1899.4,1.05299]
[1742217935374,1.05301,1899.5,1899.4,2.38039]
[1742217935568,1.05301,1899.5,1899.4,5.2174]
[1742217936476,2.45791,1899.5,1899.4,5.2174]
[1742217936870,2.45791,1899.5,1899.4,6.27044]
[1742217937183,1.4049,1899.5,1899.4,6.27044]
[1742217937373,2.45789,1899.5,1899.4,6.27044]
[1742217937572,2.45789,1899.5,1899.4,5.2174]
[1742217937876,2.17908,1899.6,1899.4,6.27044]
[1742217938077,3.58398,1899.6,1899.5,1.3274]
[1742217938465,1.05292,1899.7,1899.5,2.38039]
[1742217938671,1.05292,1899.7,1899.6,3.52363]
[1742217939083,1.05292,1899.7,1899.6,2.4707]
[1742217939377,1.1071,1899.8,1899.6,2.4707]
[1742217939573,1.05288,1899.7,1899.6,1.1229]
[1742217940075,2.38218,1899.7,1899.6,1.1229]
[1742217941075,2.38218,1899.7,1899.3,4.26086]
[1742217941076,1.05299,1899.5,1899.4,4.9897]
[1742217941376,1.05299,1899.5,1899.4,6.04274]
[1742217941675,2.38223,1899.6,1899.5,1.05299]
[1742217942079,1.05292,1899.7,1899.6,1.05293]
[1742217942276,2.37312,1899.7,1899.6,1.05293]
[1742217942675,1.1071,1899.8,1899.5,1.0332]
[1742217942676,2.15996,1899.8,1899.7,1.05288]
[1742217942878,3.48016,1899.8,1899.7,1.05288]
[1742217943976,3.48015,1899.8,1899.7,1.05288]
[1742217944174,3.48012,1899.8,1899.7,1.05288]
[1742217944378,1.0529,1899.7,1899.6,1.0529]
[1742217944573,2.46332,1899.7,1899.6,1.05293]
[1742217946482,1.4104,1899.7,1899.6,1.05293]
[1742217946684,0.9586201,1899.9,1899.5,6.87342]
[1742217946887,1.4104,1899.9,1899.8,1.05282]
[1742217947087,1.4104,1899.9,1899.8,4.94082]
[1742217947284,1.4104,1899.9,1899.8,6.02602]
[1742217947480,1.0393,1900.0,1899.9,1.05277]
[1742217947686,2.3629,1900.0,1899.9,4.26057]
[1742217949393,3.41561,1900.0,1899.9,4.26057]
[1742217949590,2.3629,1900.0,1899.9,4.26057]
[1742217950091,3.41561,1900.0,1899.9,3.2078]
[1742217950988,2.63203,1899.9,1899.5,32.4078]
[1742217951186,1.05289,1899.7,1899.6,7.41192]
[1742217951389,1.3312,1899.8,1899.6,7.41192]
[1742217951693,1.05288,1899.7,1899.6,7.41193]